{"text_format":"1","workbook":"xlsx","n_sheets":3,"sheets":["Liste","Feuil1","Feuil2"],"not_rendered":{"charts":0,"images":0,"macros":1,"external_links":1,"defined_names":3,"comments":0,"pivot_tables":1},"unopened":[],"bounds":{"document_bytes":16777216,"sheet_cells":100000,"rows_first":2000,"rows_last":500,"rows_between":2000,"halvings":0,"cell_chars":16384,"cell_head_chars":4096},"cells_cut":0,"cells_raw":0,"read":"whole","date_system":"1900"}

{"sheet":"Liste","index":0,"n_rows":17,"n_cols":10,"rows_kept":17,"cut":false,"hidden":false,"merged":[]}
["Le prénom ","E:","Film","YYY","Comédie",{"$f":"IF(COUNTIF($A$1:A1,A1)>1,\"Doublon\",\"\")","v":""},"De La Patellière Alexandre",{"$f":"COUNTIF($G$1:$G$95,G1)","v":1},"Patrick Bruel","Valérie Benguigui"]
["Le transporteur 1 ","E:","Film","YYYY","Comédie",{"$f":"IF(COUNTIF($A$1:A2,A2)>1,\"Doublon\",\"\")","v":""},"Leterrier Louis",2,"Jason Statham","Shu Qi"]
["Le transporteur 2 ","E:","Film","YYYY","Comédie",{"$f":"IF(COUNTIF($A$1:A3,A3)>1,\"Doublon\",\"\")","v":""},"Leterrier Louis",2,"Jason Statham","Amber Valletta"]
["Le transporteur 3 ","E:","Film","YYYY","Comédie",{"$f":"IF(COUNTIF($A$1:A4,A4)>1,\"Doublon\",\"\")","v":""},"Megaton Olivier",1,"Jason Statham","Natalya Rudakova"]
["L'emprise","E:","Téléfilm","YYYYY","Drame",{"$f":"IF(COUNTIF($A$1:A5,A5)>1,\"Doublon\",\"\")","v":""},"Rome Claude-Michel",1,"Fred Testot","Odile Vuillemin"]
["Les risques du métier","E:","Film","YYYY","Comédie",{"$f":"IF(COUNTIF($A$1:A6,A6)>1,\"Doublon\",\"\")","v":""},"Cayatte André",1,"Jacques Brel","Emmanuelle Riva"]
["Les Tuches 1","E:","Film","YYYY","Comédie",null,"Baroux Olivier",2,"Jean Paul Rouve","Isabelle Nanty"]
["Les Tuches 2","E:","Film","YYYY","Comédie",null,"Baroux Olivier",2,"Jean Paul Rouve","Isabelle Nanty"]
["Les visiteurs 1","E:","Film","YYY","Comédie",{"$f":"IF(COUNTIF($A$1:A9,A9)>1,\"Doublon\",\"\")","v":""},"Marie Poiré Jean",1,"Christian Clavier","Valérie Lemercier"]
["Sans identité","E:","Film","YYYY","Comédie",{"$f":"IF(COUNTIF($A$1:A10,A10)>1,\"Doublon\",\"\")","v":""},"Collet-Serra Jaume",1,"Liam Neeson","Diane Kruger"]
["Titanic","E:","Film","YYYYY","Histoire",{"$f":"IF(COUNTIF($A$1:A11,A11)>1,\"Doublon\",\"\")","v":""},"Cameron James",1,"Léonardo Di Caprio","Kate Winslet"]
["Tout ça pour ça","E:","Film","YYYY","Comédie",{"$f":"IF(COUNTIF($A$1:A12,A12)>1,\"Doublon\",\"\")","v":""},"Lelouch Claude",1,"Fabrice Luchini","Marie Sophie L."]
["Twillight 1","E:","Film","YYYY","Comédie",{"$f":"IF(COUNTIF($A$1:A13,A13)>1,\"Doublon\",\"\")","v":""},"Hardwicke Catherine",1,"Robert Pattinson","Kristen Stewart"]
["Twillight 2","E:","Film","YYYY","Comédie",{"$f":"IF(COUNTIF($A$1:A14,A14)>1,\"Doublon\",\"\")","v":""},"Weitz, Chris",1,"Robert Pattinson","Kristen Stewart"]
["Twillight 3","E:","Film","YYYY","Comédie",{"$f":"IF(COUNTIF($A$1:A15,A15)>1,\"Doublon\",\"\")","v":""},"Slade David",1,"Robert Pattinson","Kristen Stewart"]
["Twillight 4","E:","Film","YYYY","Comédie",{"$f":"IF(COUNTIF($A$1:A16,A16)>1,\"Doublon\",\"\")","v":""},"Condon Bill",2,"Robert Pattinson","Kristen Stewart"]
["Twillight 5","E:","Film","YYYY","Comédie",{"$f":"IF(COUNTIF($A$1:A17,A17)>1,\"Doublon\",\"\")","v":""},"Condon Bill",2,"Robert Pattinson","Kristen Stewart"]

{"sheet":"Feuil1","index":1,"n_rows":160,"n_cols":16,"rows_kept":160,"cut":false,"hidden":false,"merged":[[0,1,0,2]]}
[" "," ",null," "," "]
[null,null,null,null,{"$f":"INDEX(E4:E895,MATCH(MAX(COUNTIF(E4:E895,E4:E895)),COUNTIF(E4:E895,E4:E895),0))","v":"Claude Lelouch"}," ",{"$f":"INDEX(G4:G895,MATCH(MAX(COUNTIF(G4:G895,G4:G895)),COUNTIF(G4:G895,G4:G895),0))","v":"Thierry Lhermite"},null,{"$f":"INDEX(I4:I892,MATCH(MAX(COUNTIF(I4:I892,I4:I892)),COUNTIF(I4:I892,I4:I892),0))","v":"Michèle Laroque"}," ",null,"32"," "," "," "," "]
["NOM","LIEU","GENRE","USB",{"$f":"\"(\"&MAX(F4:F300)&\") REALISATEUR\"","v":"(4) REALISATEUR"},"Qté",{"$f":"\"(\"&COUNTIF(G4:G449,G2)&\") ACTEUR\"","v":"(6) ACTEUR"},"Qté",{"$f":"\"(\"&COUNTIF(I4:I449,I2)&\") ACTRICE\"","v":"(4) ACTRICE"},"Qté"]
["36 quai des orfèvres","C:\\","Policier","Violette","Olivier Marchal",{"$f":"COUNTIF($E$4:$E$451,E4)","v":2},"Daniel Auteuil",{"$f":"COUNTIF($G$4:$G$999,G4)","v":2},"Valéria Golino",{"$f":"COUNTIF($I$4:$I$999,I4)","v":1}]
["A couteaux tirés","C:\\","Drame","Bleue","Lee Tamahori",1,"Anthony Hopkins",5,"Elle MacPherson",1,null,"USB","(Tous)"]
["A la folie pas du tout","C:\\","Comédie","Bleue","Laetitia Colombani",1,"Samuel Le Bihan",2,"Audrey Tautou",1]
["Alexandre","DVD","Film d'histoire",null,"Oliver Stone",1,"Colin Farrell",1,"Angélina Jolie",1,null," "," "]
["Aliens 2","DVD","Epouvante",null,"James Cameron",2,"Michael Bienh",1,"Sigourney Weaver",2,null,"Genre","C:\\","CD","DVD","TTL"]
["Apocalypto","DVD","Film d'histoire",null,"Mel Gibson",2,"Rudy Youngblood",1,"Dalia Hernández",1,null,"Aventure",7,null,13,20]
["Avatar","C:\\","Aventure","Violette","James Cameron",2,"Sam Worthington",1,"Sigourney Weaver",2,null,"Comédie",27,16,31,74]
["Babel","DVD","Drame",null,"Alejendro Inarritu Gonzalez",1,"Brad Pitt",2,"Cate Blanchett",1,null,"Dessin animé",null,2,null,2]
["Banlieue 13","C:\\","Policier","Violette","Pierre Morel",2,"Cyrill Rafaelli",1,"Dany Verissimo",1," ","Drame",16,1,8,25]
["Ben-Hur","DVD","Film d'histoire",null,"William Wyler",1,"Charlton Heston",1,"Haya Harareet",1,null,"Epouvante",null,null,2,2]
["Best of the best","CD","Comédie",null,"Robert Radler",2,"Eric Roberts",2,"Sally Kirkland",1,null,"Film d'histoire",1,2,12,15]
["Best of the best 2","DVD","Comédie",null,"Robert Radler",2,"Eric Roberts",2,"Meg Foster",2,null,"Policier",12,1,2,15]
["Bienvenue chez les ch'tis","C:\\","Comédie","Violette","Danny Boon",1,"Danny Boon",1,"Anne Quirvin",1,null,"Théatre",1,3,null,4]
["Blood diamand","CD","Drame",null,"Edward Zwick",2,"Léonardo Di Caprio",1,"Jennifer Connelly",1,null,"TTL",64,25,68,157]
["Borsalino","DVD","Aventure",null,"Jacques Deray",2,"Alain Delon",2,"Catherine Rouvel",2," "]
["Borsalino and co","DVD","Aventure",null,"Jacques Deray",2,"Alain Delon",2,"Catherine Rouvel",2]
["Braveheart","DVD","Film d'histoire",null,"Mel Gibson",2,"Mel Gibson",2,"Catherine MacKormac",1]
["Brothers","C:\\","Drame","Violette","Jim Shéridan",1,"Jake Gyllenhaal",1,"Natalie Portman",2]
["Camping 1","C:\\","Comédie","Violette","Fabien Onteniente",3,"Gérard Lanvin",4,"Mathilde Seigner",2]
["Camping 2","C:\\","Comédie","Violette","Fabien Onteniente",3,"Richard Anconina",5,"Mathilde Seigner",2]
["Canard à l'orange","CD","Comédie",null,"Michel Roux",1,"Michel Roux",1,"Nadine Alari",1]
["Comme les cinq doigts de la main","C:\\","Policier","Violette","Alexandre Arcady",2,"Patrick Bruel",2,"Françoise Fabian",1]
["Comme t'y es belle","CD","Comédie",null,"Liza Azuelos",1,"Thierry Neuvic",1,"Michèle Laroque",4]
["Crocodile Dundee 1","DVD","Aventure",null,"Paul Hogan",2,"Paul Hogan",2,"Linda Kozlowski",2]
["Crocodile Dundee 2","DVD","Aventure",null,"Paul Hogan",2,"Paul Hogan",2,"Linda Kozlowski",2]
["Cyrano","C:\\","Film d'histoire","Violette","Rappeneau Jean Paul",1,"Gérard Depardieu",3,"Anne Brochet",1]
["Dérapage","C:\\","Drame","Violette","Mikael Hafstrom",1,"Clive Owen",1,"Jennifer Anniston",1]
["Didier","CD","Comédie",null,"Alain Chabat",1,"Alain Chabat",3,"Caroline Cellier",1]
["Elles n'oublient jamais","C:\\","Drame","Bleue","Christopher Frank",2,"Thierry Lhermite",6,"Nadia Farès",1]
["Gazon maudit","CD","Comédie",null,"Josiane Balasko",1,"Alain Chabat",3,"Josiane Balasko",4]
["Intouchables","C:\\","Comédie","Violette","Nakache & Toledano",1,"Omar Sy",1,"Audrey Fleurot",1]
["Itinéraire d'un enfant gâté","DVD","Aventure",null,"Claude Lelouch",4,"Jean Paul Belmondo",3,"Marie Sophie L.",2]
["J'ai épousé une ombre","C:\\","Drame","Blanche","Robin Davis",{"$f":"COUNTIF($E$4:$E$451,E36)","v":1},"Francis Huster",{"$f":"COUNTIF($G$4:$G$999,G36)","v":1},"Nathalie Baye",{"$f":"COUNTIF($I$4:$I$999,I36)","v":3}]
["Jamais sans ma fille","DVD","Drame",null,"Brian Gilbert",1,"Alfred Molina",1,"Sally Field",1]
["Je vous trouve très beau","CD","Comédie",null,"Isabelle Mergault",1,"Michel Blanc",1,"Medeea Marinescu",1]
["Jean de Florette","C:\\","Comédie","Bleue","Claude Berri",2,"Yves Montand",2,"Emmanuelle Béart",3]
["Jet set","DVD","Comédie",null,"Fabien Onteniente",3,"Samuel Le Bihan",2,"Ariadna Gil",1]
["J'y suis, j'y reste","CD","Théatre",null,"Jacqueline Maillan",1,"Jacques Morel",1,"Anne-Marie Carrière",1]
["La 25 ème heure","CD","Film d'histoire",null,"Henri Verneuil",2,"Anthony Quinn",1,"Virna Lisi",1]
["La balance","DVD","Policier",null,"Bon Swain",1,"Richard Berry",2,"Nathalie Baye",3]
["La belle histoire","DVD","Aventure",null,"Claude Lelouch",4,"Gérard Lanvin",4,"Marie Sophie L.",2]
["La bombe","C:\\","Théatre","Blanche","Carole Greep",1,"David Talbot",1,"Audrey Legrand",1]
["La déchirure","DVD","Film d'histoire",null,"Roland Joffé",1,"Sam Waterston",1,"Katherine Krapum Chey",1]
["La dérobade","C:\\","Drame","Blanche","Daniel Duval",1,"Daniel Duval",1,"Miou Miou",1]
["La faille","C:\\","Drame","Blanche","Gregory Hoblit",1,"Anthony Hopkins",5,"Rosamund Pike",1]
["La famille Bélier","C:\\","Comédie","Violette","Eric Lartigau",2,"François Damiens",1,"Louane Emera",1]
["La forêt d'émeraude ","C:\\","Aventure","Blanche","John Boorman",1,"Powers Booth",1,"Meg Foster",2]
["La grande vadrouille ","C:\\","Comédie","Violette","Gérard Oury",1,"Bourvil",1,"Marie Dubois",1]
["La ligne verte","C:\\","Drame","Violette","Frank Darabont",1,"Tom Hanks",2,"Bonnie Hunt",1]
["La rivière sauvage","C:\\","Aventure","Bleue","Curtis Hansen",1,"Kevin Bacon",1,"Meryl Streep",2]
["La scoumoune ","C:\\","Policier","Violette","José Giovanni",1,"Jean Paul Belmondo",3,"Claudia Cardinale",1]
["La source des femmes","C:\\","Comédie","Bleue","Mihaileanu Radu",2,"Salek Bakri",1,"Leila Bekhti",2]
["La vérité si je mens","DVD","Comédie",null,"Thomas Gilou",3,"Richard Anconina",5,"Amira Casar",3]
["La vérité si je mens 2","DVD","Comédie",null,"Thomas Gilou",3,"Richard Anconina",5,"Amira Casar",3]
["La vérité si je mens 3","DVD","Comédie",null,"Thomas Gilou",3,"Richard Anconina",5,"Amira Casar",3]
["La vie est belle","C:\\","Comédie","Bleue","Roberto Benini",1,"Roberto Benigni",1,"Nicoletta Braschi",1]
["La vie est un long fleuve tranquille ","CD","Comédie",null,"Etienne Chatiliez",2,"Benoit Magimel",1,"Catherine Jacob",1]
["L'addition ","CD","Policier",null,"Denis Amar",1,"Richard Berry",2,"Victoria Abril",2]
["L'age de glace 2 ","CD","Dessin animé",null,"Carlos Saldanha",1," ",2,null,0]
["L'année des méduses","C:\\","Comédie","Blanche","Christopher Frank",2,"Bernard Giraudeau",2,"Valérie Kaprisky",1]
["L'arnacoeur ","C:\\","Comédie","Bleue","Pascal Chaumeil",1,"Romain Duris",1,"Vanessa Paradis",1]
["Le bonheur est dans le pré","DVD","Comédie",null,"Etienne Chatiliez",2,"Michel Serrault",2,"Carmen Maura",1]
["Le Bounty ","C:\\","Aventure","Blanche","Roger Donaldson",1,"Anthony Hopkins",5,"Mary Kauila",1]
["Le clan des siciliens","C:\\","Policier","Bleue","Henri Verneuil",2,"Jean Gabin",1,"Irina Demick",1]
["Le cœur des Hommes 1","DVD","Comédie",null,"Marc Esposito",{"$f":"COUNTIF($E$4:$E$451,E68)","v":3},"Marc Lavoine",{"$f":"COUNTIF($G$4:$G$999,G68)","v":3},"Zoé Felix",{"$f":"COUNTIF($I$4:$I$999,I68)","v":3}]
["Le cœur des Hommes 2","DVD","Comédie",null,"Marc Esposito",3,"Marc Lavoine",3,"Zoé Felix",3]
["Le cœur des Hommes 3","DVD","Comédie",null,"Marc Esposito",3,"Marc Lavoine",3,"Zoé Felix",3]
["Le dernier des Mohicans","DVD","Film d'histoire",null,"Michael Mann",1,"Daniel Day Lewis",1,"Madeleine Stowe",1]
["Le dernier roi d'Ecosse ","CD","Film d'histoire",null,"Kevin MacDonald",1,"Forest Whitaker",1,"Kerry Washington",1]
["Le diable s'habille en Prada","DVD","Comédie",null,"David Frankel",1,"Stanley Tucci",1,"Meryl Streep",2]
["Le dîner de cons","DVD","Comédie",null,"Patrice Leconte",4,"Thierry Lhermite",6,"Catherine Frot",1]
["Le grand pardon ","C:\\","Policier","Bleue","Alexandre Arcady",2,"Roger Hanin",1,"Clio Goldsmith",1]
["Le jaguar","DVD","Comédie",null,"Francis Weber",2,"Patrick Bruel",2,"Patricia Velasquez",1]
["Le jour d'après","DVD","Aventure",null,"Roland Emmerich",1,"Denis Quaid",1,"Emmy Rossun",1]
["Le livre de la jungle 2 ","CD","Dessin animé",null,"Steve Trenbirth",1," ",2,null,0]
["Le papillon","DVD","Comédie",null,"Patrick Godeau",1,"Michel Serrault",2,"Claire Bouanich",1]
["Le parrain","DVD","Drame",null,"Francis Ford Coppola",2,"Marlon Brando",2,"Talia Shire",2]
["Le parrain 2","DVD","Drame",null,"Francis Ford Coppola",2,"Al Pacino",1,"Talia Shire",2]
["Le père Noël est une ordure","DVD","Comédie",null,"Jean-Marie Poiré",2,"Thierry Lhermite",6,"Anémone",1]
["Le placard","DVD","Comédie",null,"Francis Weber",2,"Daniel Auteuil",2,"Michèle Laroque",4]
["Le plus beau métier du monde","C:\\","Comédie","Bleue","Gérard Lauzier",1,"Gérard Depardieu",3,"Michèle Laroque",4]
["Le retour de Martin Guerre","DVD","Film d'histoire",null,"Daniel Vigne",1,"Gérard Depardieu",3,"Nathalie Baye",3]
["Le silence des agneaux","C:\\","Drame","Rouge","Joh,atan Demme",1,"Anthony Hopkins",5,"Jodie Foster",2]
["Légende d'automne","DVD","Aventure",null,"Edward Zwick",2,"Anthony Hopkins",5,"Julia Ormond",1]
["L'enfer","C:\\","Drame","Blanche","Claude Chabrol",2,"François Cluzet",1,"Emmanuelle Béart",3]
["L'enquete corse","CD","Comédie",null,"Alain Berbérian",1,"Christian Clavier",2,"Caterina Murino",1]
["Léon","CD","Comédie",null,"Luc Besson",3,"Jean Réno",3,"Natalie Portman",2]
["Les 12 salopards","C:\\","Aventure","Blanche","Robert Aldrich",1,"Lee Marvin",1]
["Les Bronzés 1","DVD","Comédie",null,"Patrice Leconte",4,"Thierry Lhermite",6,"Josiane Balasko",{"$f":"COUNTIF($I$4:$I$999,I92)","v":4}]
["Les bronzés 2","DVD","Comédie",null,"Patrice Leconte",4,"Thierry Lhermite",6,"Josiane Balasko",4]
["Les bronzés 3","CD","Comédie",null,"Patrice Leconte",4,"Thierry Lhermite",6,"Josiane Balasko",4]
["Les choristes","DVD","Comédie",null,"Christophe Barratier",1,"Gérard Jugnot",3,"Marie Bunel",1]
["Les enfants du marais ","CD","Comédie",null,"Jean Becker",2,"Jacques Gamblin",1,"Isabelle Carré",1]
["Les lyonnais ","DVD","Policier",null,"Olivier Marchal",2,"Gérard Lanvin",4,"Valeria Cavalli",1]
["Les misérables","DVD","Film d'histoire",null,"Claude Lelouch",4,"Jean Paul Belmondo",3,"Allessandra Martinez",1]
["Les nuits avec mon ennemi","C:\\","Drame","Blanche","Joseph Ruben",1,"Patrick Bergin",1,"Julia Roberts",2]
["Les petits mouchoirs","C:\\","Comédie","Violette","Guillaume Canet",{"$f":"COUNTIF($E$4:$E$451,E100)","v":2},"François Cluzel",{"$f":"COUNTIF($G$4:$G$999,G100)","v":1},"Marion Cotillard",1]
["Les révoltés du Bounty","DVD","Film d'histoire",null,"Lewis Milestone",1,"Marlon Brando",2,"Tarita",1]
["Les ripoux 1","DVD","Comédie",null,"Claude Zidi",3,"Philippe Noiret",3,"Régine",1]
["Les ripoux 2","DVD","Comédie",null,"Claude Zidi",3,"Philippe Noiret",3,"Line Renaud",1]
["Les ripoux 3 ","CD","Comédie",null,"Claude Zidi",3,"Philippe Noiret",3,"Bernadette Lafonf",1]
["Les seigneurs ","C:\\","Comédie","Bleue","Olivier Dahon",1,"José Garcia",1,"Clémentine Baert",1]
["Les trois frères","CD","Comédie",null,"Didier Bourdon",2,"Didier Bourdon",2,"Anne Jacquemin",1]
["Les trois frères 2","C:\\","Comédie","Bleue","Didier Bourdon",2,"Didier Bourdon",2,"Sofia Lesaffre",1]
["Les Tuche 1","C:\\","Comédie","Blanche","Olivier Baoux",2,"Jean-Paul Rouve",2,"Isabelle Nanty",2]
["Les Tuche 2","C:\\","Comédie","Blanche","Olivier Baoux",2,"Jean-Paul Rouve",2,"Isabelle Nanty",2]
["Les uns et les autres","DVD","Aventure",null,"Claude Lelouch",4,"Robert Hossein",1,"Nicole Garcia",1]
["Les visiteurs","C:\\","Comédie","Bleue","Jean-Marie Poiré",2,"Jean Réno",3,"Valérie Lemercier",1]
["L'été meurtrier","C:\\","Drame","Bleue","Jean Becker",2,"Alain Souchon",1,"Isabelle Adjani",1]
["L'exorciste ","DVD","Epouvante",null,"William Friedkin",1,"Jason Miller",1,"Linda Blair",1]
["Liaison fatale","C:\\","Drame","Bleue","Lyne Adrian",1,"Michael Douglas",1,"Glenn Close",1]
["L'immortel","C:\\","Policier","Violette","Richard Berry",1,"Jean Réno",3,"Marina Foïs",2]
["Lucy","C:\\","Comédie","Violette","Luc Besson",3,"Morgan Freeman",2,"Scarlett Johansson,",1]
["Mad Max","DVD","Aventure",null,"Georges Miller",1,"Mel Gibson",2,"Joanne Samuel",1]
["Madame Bovary","DVD","Comédie",null,"Claude Chabrol",2,"Jean François Balmer",1,"Isabelle Huppert",1]
["Manon des sources","C:\\","Comédie","Bleue","Claude Berri",2,"Yves Montand",2,"Emmanuelle Béart",3]
["Marche à l'ombre","DVD","Comédie",null,"Michel Blanc",1,"Gérard Lanvin",4,"Sophie Duez",1]
["Mesrine 1","C:\\","Policier","Violette","Jean François Richet",2,"Vincent Cassel",2,"Cécile De France",1]
["Mesrine 2","C:\\","Policier","Violette","Jean François Richet",2,"Vincent Cassel",2,"C:\\divine Sagnier",1]
["Midnight express","DVD","Drame",null,"Alan Parker",1,"Brad Davis",1,"Irène Miracle",1]
["Mission","DVD","Film d'histoire",null,"Roland Joffe",1,"Robert De Niro",1,"Chérie C:\\nghi",{"$f":"COUNTIF($I$4:$I$999,I124)","v":1}]
["Monsieur Batignole","DVD","Comédie",null,"Gérard Jugnot",2,"Gérard Jugnot",3,"Michèle Garcia",1]
["Ne le dis à personne","C:\\","Drame","Blanche","Guillaume Canet",2,"François CC:\\zet",1,"Marie-José Croze",1]
["Nell","DVD","Comédie",null,"Michael Apted",1,"Liam Neeson",5,"Jodie Foster",2]
["Nikita","CD","Comédie",null,"Luc Besson",3,"Tchecky Karyo",1,"Anne Parillaud",1]
["N'oublie jamais","C:\\","Aventure","Violette","Nick Cassavetes",1,"Ryan Gosling",1,"Rachel McAdams",1]
["Nuits blanches à Seattle","DVD","Comédie",null,"Nora Ephron",1,"Tom Hanks",2,"Meg Ryan",1]
["Orange mécanique","DVD","Comédie",null,"Stanley Kubrick",1,"Malcolm McDowell",1,"Margaret Tyzack",1]
["Pédale douce","DVD","Comédie",null,"Gabriel Aghion",{"$f":"COUNTIF($E$4:$E$451,E132)","v":1},"Patrick Timsit",{"$f":"COUNTIF($G$4:$G$999,G132)","v":1},"Michèle Laroque",4]
["Polisse","C:\\","Drame","Violette","Maïwenn",1,"Joe Star",1,"Marina Foïs",2]
["Porgy and Bess","DVD","Comédie",null,"Georges Gerschwin",1,"Willard White",1,"Cynthia Haymon",1]
["Pouicpouic","C:\\","Comédie","Violette","Jean Giraud",1,"Louis De Funès",1,"Jacqueline Maillan",1]
["Prête moi ta main","DVD","Comédie",null,"Eric Lartigau",2,"Alain Chabat",3,"Charlotte Gainsbourg",1]
["Pretty woman","CD","Comédie",null,"Garry Marshall",1,"Richard Gere",1,"Julia Roberts",2]
["Qu'est-ce qu'on a fait au bon Dieu","C:\\","Comédie","Violette","Philippe De Chauveron",1,"Christian Clavier",2,"Chantal Lauby",1]
["Rambo 1","DVD","Aventure",null,"Ted Kotcheff",1,"Sylvester Stallone",3,"Sans",2]
["Rambo 2","DVD","Aventure",null,"Pan Cosmatos",1,"Sylvester Stallone",3,"Julia Nickson-Soul",1]
["Rambo 3","DVD","Aventure",null,"Peter MacDonald",1,"Sylvester Stallone",3,"Sans",2]
["Road house","DVD","Comédie",null,"Rowdy Herrington",1,"Patrick Swaize",1,"Kelly Lynch",1]
["Rob Roy","DVD","Film d'histoire",null,"Michael Caton-Jones",1,"Liam Neeson",5,"Jessica Lange",1]
["Rue barbare","DVD","Drame",null,"Gilles Béhat",1,"Bernard Giraudeau",2,"Christine Boisson",1]
["Sexe magouille","CD","Théatre",null,"Laurent Baffie",2,"Daniel Russo",2,"Mado Maurin",1]
["Slum dog millionaire","C:\\","Aventure","Violette","Danny Boyle",1,"Dev Patel",1,"Freida Pinto",1]
["Stars 80","C:\\","Comédie","Bleue","Frédéric Forestier",1,"Richard Anconina",5,"Lio",1]
["Taken","C:\\","Policier","Violette","Pierre Morel",2,"Liam Neeson",5,"Famke Jannsen",3]
["Taken 2","C:\\","Policier","Violette","Olivier Megaton",2,"Liam Neeson",5,"Famke Jannsen",3]
["Taken 3","C:\\","Policier","Violette","Olivier Megaton",2,"Liam Neeson",5,"Famke Jannsen",3]
["The best of me","C:\\","Comédie","Violette","Michael Hoffman",1,"James Marsden",1,"Michèle Monaghan",1]
["Toc toc","CD","Théatre",null,"Laurent Baffie",2,"Daniel Russo",2,"Claire Maurier",1]
["Tout ce qui brille","C:\\","Comédie","Bleue","Géraldine Nakache",1,"Simon Buret",1,"Leila Bekhti",2]
["Tout sur ma mère","DVD","Drame",null,"Pedro Almodovar",1,"Eloy Azorin",1,"Cécilia Roth",1]
["Troie","DVD","Film d'histoire",null,"Wolfgang Peterson",1,"Brad Pitt",2,"Diane Kruger",1]
["Un été magique","C:\\","Comédie","Bleue","Bob Reiner",1,"Morgan Freeman",2,"Virginia Madsen",{"$f":"COUNTIF($I$4:$I$999,I156)","v":1}]
["Une époque formidable","CD","Comédie",null,"Gérard Jugnot",2,"Gérard Jugnot",3,"Victoria Abril",2]
["Va, vis et deviens","C:\\","Drame","Blanche","Mihaileanu Radu",2,"Roschdy Zem",1,"Yael Abecassis",1]
["Vol au-dessus d'un nid de coucou","DVD","Drame",null,"Milos Forman",1,"Jack Nicholson",1,"Louise Fletcher",1]
["West side story","DVD","Comédie",null,"Robert Wise",1,"Georges Chakiris",1,"Nathalie Wood",1]

{"sheet":"Feuil2","index":2,"n_rows":7,"n_cols":5,"rows_kept":7,"cut":false,"hidden":false,"merged":[]}
[]
[null,"comédie"]
[null,"d'aventure",null,null,"Sub sc()"]
[null,"d'hoorreur",null,null,"Cells(Rows.Count, 1).End(xlUp)(2).Select"]
[null,"drame",null,null,"End Sub"]
[null,"historique"]
[null,"policier"]